fUSD/lending_fUSD_20260207
["ID","MTS","AMOUNT","RATE_DAILY","PERIOD"]
[404693551,1770473441149,-7170.68736621,0.00017411,2]
[404693552,1770473441159,-260.4103811,0.00017429,2]
[404693553,1770473441170,-270.0455652,0.00017484,2]
[404693554,1770473441180,-500.0,0.00017515,2]
[404693555,1770473441189,-1998.21015447,0.00017516,2]
[404693556,1770473441198,-280.03725112,0.00017539,2]
[404693557,1770473441211,-300.0,0.00017542,2]
[404693558,1770473441220,-290.39862941,0.00017594,2]
[404693559,1770473441230,-1188.18820231,0.0001764,2]
[404693560,1770473441239,-181.08010149,0.00017647,2]
[404693561,1770473441248,-301.1433787,0.00017649,2]
[404693562,1770473441258,-840.0,0.0001768,2]
[404693563,1770473441267,-163.0,0.0001768,2]
[404693564,1770473441277,-1500.0,0.000177,2]
[404693565,1770473441287,-3292.0,0.00017719,2]
[404693566,1770473441296,-2000.0,0.0001772,2]
[404693567,1770473441305,-203.91426758,0.00017808,2]
[404693568,1770473441315,-250.0,0.00017808,20]
[404693569,1770473441324,-250.0,0.00017808,20]
[404693570,1770473441334,-250.0,0.00017808,20]
[404693571,1770473441343,-250.0,0.00017808,20]
[404693572,1770473441352,-250.0,0.00017808,20]
[404693573,1770473441361,-250.0,0.00017808,20]
[404693574,1770473441370,-250.0,0.00017808,20]
[404693575,1770473441379,-250.000003,0.00017808,20]
[404693576,1770473441388,-453.527216,0.00017869,7]
[404693577,1770473441397,-500.0,0.000179,2]
[404693578,1770473441407,-9898.87098964,0.000179,3]
[404693579,1770473441416,-532.65469109,0.000179,2]
[404693580,1770473441425,-169.42023235,0.000179,2]
[404693581,1770473441435,-1500.0,0.000179,2]
[404693582,1770473441444,-7170.68736621,0.000179,2]
[404693583,1770473441453,-1998.21015447,0.000179,2]
[404693584,1770473441463,-485.452304,0.000179,2]
[404693585,1770473441472,-707.02472124,0.000179,3]
[404693586,1770473441482,-16453.186493,0.000179,2]
[404693587,1770473441498,-500.0,0.000179,2]
[404693588,1770473441508,-500.0,0.000179,2]
[404693589,1770473441517,-500.0,0.000179,2]
[404693590,1770473441527,-500.0,0.000179,2]
[404693591,1770473441537,-500.0,0.000179,2]
[404693592,1770473441547,-500.0,0.000179,2]
[404693593,1770473441556,-500.0,0.000179,2]
[404693594,1770473441567,-444.30041557,0.000179,2]
[404693595,1770473441576,-170.6,0.00017956,2]
[404693596,1770473441586,-1123.0,0.00017973,2]
[404693597,1770473441595,-500.0,0.00017973,2]
[404693598,1770473441605,-150.0,0.00017973,2]
[404693599,1770473441614,-151.0,0.00017997,2]
[404693600,1770473441624,-7666.3922852,0.00017998,2]
[404693601,1770473441634,-7603.5510597,0.00017998,2]
[404693602,1770473441644,-1979.1811742,0.00017998,2]
[404693603,1770473441654,-300.0,0.00017999,2]
[404693604,1770473441663,-666.0,0.00017999,2]
[404693605,1770473441672,-1061286.43639859,0.00018,2]
[404693606,1770473441734,-1019.90071656,0.00013984,2]
[404693607,1770473441744,-1019.90071656,0.00013984,2]
[404693608,1770473441754,-1019.90071656,0.00013984,2]
[404693609,1770473441763,-1019.90071656,0.00013984,2]
[404693610,1770473441773,-1019.90071656,0.00013984,2]
[404693611,1770473441782,-1019.90071656,0.00013984,2]
[404693612,1770473441791,-12560.59570064,0.00018,2]
[404693613,1770473442110,-378.66,0.00013984,2]
[404693614,1770473442139,-641.24071656,0.00013984,2]
[404693615,1770473442149,-1019.90071656,0.00013984,2]
[404693616,1770473442159,-1019.90071656,0.00013984,2]
[404693617,1770473442168,-1019.90071656,0.00013984,2]
[404693618,1770473442177,-1019.90071656,0.00013984,2]
[404693619,1770473442186,-1019.90071656,0.00013984,2]
[404693620,1770473442195,-1019.90071656,0.00013984,2]
[404693621,1770473442204,-1019.90071656,0.00013984,2]
[404693622,1770473442213,-1019.90071656,0.00013984,2]
[404693623,1770473442223,-1019.90071656,0.00013984,2]
[404693624,1770473442233,-1019.90071656,0.00013984,2]
[404693625,1770473442244,-1019.90071656,0.00013984,2]
[404693626,1770473442254,-1019.90071656,0.00013984,2]
[404693627,1770473442263,-1019.90071656,0.00013984,2]
[404693628,1770473442272,-1019.90071656,0.00013984,2]
[404693629,1770473442282,-1019.90071656,0.00013984,2]
[404693630,1770473442292,-1019.90071656,0.00013984,2]
[404693631,1770473442302,-1019.90071656,0.00013984,2]
[404693632,1770473442311,-1019.90071656,0.00013984,2]
[404693633,1770473442321,-1019.90071656,0.00013984,2]
[404693634,1770473442330,-1019.90071656,0.00013984,2]
[404693635,1770473442339,-1019.90071656,0.00013984,2]
[404693636,1770473442348,-1019.90071656,0.00013984,2]
[404693637,1770473442357,-1019.90071656,0.00013984,2]
[404693638,1770473442366,-1019.90071656,0.00013984,2]
[404693639,1770473442375,-1019.90071656,0.00013984,2]
[404693640,1770473442384,-1019.90071656,0.00013984,2]
[404693641,1770473442394,-1019.90071656,0.00013984,2]
[404693642,1770473442403,-1019.90071656,0.00013984,2]
[404693643,1770473442414,-412.0,0.00016533,2]
[404693644,1770473442424,-893145.54753257,0.00018,2]
[404693645,1770473442434,-813336.50493718,0.00018,2]
[404693646,1770473442443,-67012.59044,0.00018,2]
[404693647,1770473442455,-7677.89614001,0.00018,2]
[404693653,1770473446073,-151.0,0.00017183,2]
[404693654,1770473446083,-1092.15124191,0.0001764,2]
[404693655,1770473446092,-649.24734674,0.0001764,2]
[404693663,1770473446740,-477.65696688,0.0001764,2]
[404693664,1770473446750,-2477.11726412,0.000179,2]
[404693667,1770473446880,-329.897172,0.000179,2]
[404693669,1770473446893,-429.41959828,0.000179,2]
[404693728,1770474323747,3117.0,0.000114,5]
[404693729,1770474327063,200.58,0.00014658,7]
[404693731,1770474369934,152.0,0.00013466,3]
[404693749,1770474631920,-3406.59746186,0.00011355,2]
[404693752,1770474631932,-292.97700002,0.00011355,2]
[404693754,1770474631993,-148.89553812,0.00011355,2]
[404693755,1770474632002,-195.0,0.00011355,2]
[404693756,1770474632011,-243.0,0.00011355,2]
[404693757,1770474632022,-250.0,0.00011681,2]
[404693758,1770474632032,-195.0,0.00011681,2]
[404693759,1770474632041,-190.27766529,0.00012007,2]
[404693760,1770474632051,-626.96170805,0.00012007,2]
[404693761,1770474632063,-252.79351815,0.00012007,2]
[404693762,1770474632073,-300.51454079,0.0001249,2]
[404693763,1770474632082,-300.0,0.0001249,2]
[404693764,1770474632093,-250.0,0.0001249,2]
[404693765,1770474632102,-195.0,0.0001249,2]
[404693766,1770474632111,-134.30724296,0.0001249,2]
[404693767,1770474632124,-115.69275704,0.0001249,2]
[404693768,1770474632134,-1200.0,0.00012558,2]
[404693769,1770474632146,-500.0,0.00012559,2]
[404693770,1770474632155,-182.63,0.00012659,2]
[404693771,1770474632165,-300.0,0.00013074,2]
[404693773,1770474632179,-200.58,0.00013075,2]
[404693775,1770474632188,-879.7552262,0.00013577,2]
[404693776,1770474632197,-300.0,0.00013663,2]
[404693778,1770474632207,-500.0,0.00013664,2]
[404693779,1770474632218,-1680.0,0.00013814,2]
[404693781,1770474632227,-2417.517,0.00013886,2]
[404693783,1770474632238,-3893.84514199,0.00014,2]
[404693785,1770474632248,-3240.0,0.00014148,2]
[404693786,1770474632257,-232.73,0.00014178,2]
[404693788,1770474632267,-420.0,0.00014337,2]
[404693789,1770474632277,-6803.02245108,0.00014339,2]
[404693791,1770474632287,-5000.0,0.00014339,2]
[404693793,1770474632297,-1168.9194547,0.00014339,2]
[404693805,1770474637953,-281.55,0.00014339,2]
[404693806,1770474638011,-3549.5305453,0.00014339,2]
[404693807,1770474638022,-5000.0,0.00014339,2]
[404693808,1770474638034,-5000.0,0.00014339,2]
[404693809,1770474638045,-10067.30710929,0.0001439,2]
[404693810,1770474638054,-151.0,0.00014634,2]
[404693811,1770474638064,-163.10057236,0.00014798,2]
[404693812,1770474638074,-150.0,0.00014798,2]
[404693813,1770474638084,-159.70210657,0.00014798,2]
[404693814,1770474638093,-152.30636831,0.00014798,2]
[404693815,1770474638102,-150.0,0.00014853,2]
[404693816,1770474638111,-223.28129174,0.00014908,2]
[404693817,1770474638121,-1853.2203,0.00014973,2]
[404693818,1770474638131,-420.0,0.00014973,2]
[404693819,1770474638140,-150.0,0.00014999,2]
[404693820,1770474638150,-500.0,0.00014999,2]
[404693821,1770474638159,-500.0,0.00014999,2]
[404693822,1770474638168,-500.0,0.00014999,2]
[404693823,1770474638177,-891.90162747,0.00014999,2]
[404693824,1770474638187,-500.0,0.00014999,2]
[404693825,1770474638196,-547.8736686,0.00014999,2]
[404693826,1770474638206,-891.90162747,0.00014999,2]
[404693827,1770474638215,-500.0,0.00014999,2]
[404693828,1770474638224,-500.0,0.00014999,2]
[404693829,1770474638234,-891.90162747,0.00014999,2]
[404693830,1770474638243,-500.0,0.00014999,2]
[404693831,1770474638253,-891.90162747,0.00014999,2]
[404693832,1770474638263,-500.0,0.00014999,2]
[404693833,1770474638272,-500.0,0.00014999,2]
[404693834,1770474638282,-891.90162747,0.00014999,2]
[404693835,1770474638291,-500.0,0.00014999,2]
[404693836,1770474638300,-500.0,0.00014999,2]
[404693837,1770474638309,-891.90162747,0.00014999,2]
[404693839,1770474638318,-500.0,0.00014999,2]
[404693841,1770474638328,-891.90162747,0.00014999,2]
[404693843,1770474638337,-500.0,0.00014999,2]
[404693845,1770474638346,-301.52028469,0.00014999,2]
[404693846,1770474638355,-891.90162747,0.00014999,2]
[404693847,1770474638365,-500.0,0.00014999,2]
[404693848,1770474638374,-891.90162747,0.00014999,2]
[404693849,1770474638382,-500.0,0.00014999,2]
[404693850,1770474638391,-891.90162747,0.00014999,2]
[404693851,1770474638401,-891.90162747,0.00014999,2]
[404693852,1770474638410,-500.0,0.00014999,2]
[404693853,1770474638424,-891.90162747,0.00014999,2]
[404693854,1770474638433,-891.90162747,0.00014999,2]
[404693855,1770474638443,-891.90162747,0.00014999,2]
[404693856,1770474638452,-891.90162747,0.00014999,2]
[404693857,1770474638461,-891.90162747,0.00014999,2]
[404693858,1770474638471,-891.90162747,0.00014999,2]
[404693859,1770474638480,-891.90162747,0.00014999,2]
[404693860,1770474638489,-891.90162747,0.00014999,2]
[404693861,1770474638498,-891.90162747,0.00014999,2]
[404693862,1770474638507,-891.90162747,0.00014999,2]
[404693863,1770474638516,-891.90162747,0.00014999,2]
[404693864,1770474638526,-891.90162747,0.00014999,2]
[404693865,1770474638535,-891.90162747,0.00014999,2]
[404693866,1770474638544,-891.90162747,0.00014999,2]
[404693867,1770474638554,-891.90162747,0.00014999,2]
[404693868,1770474638563,-891.90162747,0.00014999,2]
[404693869,1770474638573,-891.90162747,0.00014999,2]
[404693870,1770474638582,-891.90162747,0.00014999,2]
[404693871,1770474638591,-891.90162747,0.00014999,2]
[404693872,1770474638600,-891.90162747,0.00014999,2]
[404693873,1770474638609,-891.90162747,0.00014999,2]
[404693874,1770474638618,-891.90162747,0.00014999,2]
[404693875,1770474638628,-891.90162747,0.00014999,2]
[404693876,1770474638637,-891.90162747,0.00014999,2]
[404693877,1770474638647,-891.90162747,0.00014999,2]
[404693878,1770474638656,-891.90162747,0.00014999,2]
[404693879,1770474638667,-467.80921357,0.00014999,2]
[404693880,1770474638680,-332.81480361,0.00014999,2]
[404693881,1770474638691,-91.27761029,0.00014999,2]
[404693882,1770474638701,-891.90162747,0.00014999,2]
[404693883,1770474638710,-891.90162747,0.00014999,2]
[404693884,1770474638720,-891.90162747,0.00014999,2]
[404693885,1770474638730,-607.95719543,0.00014999,2]
[404693886,1770474638741,-283.94443204,0.00014999,2]
[404693887,1770474638751,-891.90162747,0.00014999,2]
[404693888,1770474638760,-515.21918285,0.00014999,2]
[404693889,1770474638772,-376.68244462,0.00014999,2]
[404693890,1770474638782,-891.90162747,0.00014999,2]
[404693891,1770474638791,-891.90162747,0.00014999,2]
[404693892,1770474638800,-891.90162747,0.00014999,2]
[404693893,1770474638810,-323.12976877,0.00015,2]
[404693894,1770474638821,-928.17432033,0.00015,2]
[404693895,1770474638830,-225.2908752,0.00015,2]
[404693896,1770474638840,-14211.7772412,0.00015,2]
[404693897,1770474638849,-235.67490708,0.00015,2]
[404693898,1770474638858,-1439.2675863,0.00015,2]
[404693899,1770474638870,-961.15220685,0.00015,2]
[404693900,1770474638881,-11028.57282293,0.00015,2]
[404693901,1770474638898,-21582.35611538,0.00015,2]
[404693902,1770474638907,-2758.25469639,0.00015,2]
[404693903,1770474638917,-4253.92764525,0.00015,2]
[404693904,1770474638927,-5144.04661935,0.00015,2]
[404693905,1770474638936,-1123.0,0.00015041,2]
[404693906,1770474638949,-500.0,0.00015045,2]
[404693907,1770474638958,-150.0,0.00015045,2]
[404693908,1770474638968,-151.0,0.00015064,2]
[404693909,1770474638977,-151.0,0.00015064,2]
[404693910,1770474638987,-151.0,0.00015064,2]
[404693911,1770474638998,-151.0,0.00015064,2]
[404693912,1770474639007,-151.0,0.00015064,2]
[404693913,1770474639017,-151.0,0.00015064,2]
[404693914,1770474639027,-151.0,0.00015064,2]
[404693915,1770474639037,-151.0,0.00015064,2]
[404693916,1770474639047,-180.38291629,0.00015064,2]
[404693917,1770474639056,-200.0,0.00015064,2]
[404693918,1770474639065,-500.0,0.00015064,2]
[404693919,1770474639075,-151.0,0.00015064,2]
[404693920,1770474639084,-151.0,0.00015064,2]
[404693921,1770474639094,-151.0,0.00015064,2]
[404693922,1770474639104,-151.0,0.00015064,2]
[404693923,1770474639113,-151.0,0.00015064,2]
[404693924,1770474639123,-263.99350842,0.00015064,2]
[404693925,1770474639133,-151.0,0.00015064,2]
[404693926,1770474639142,-500.0,0.00015064,2]
[404693927,1770474639152,-151.0,0.00015064,2]
[404693928,1770474639161,-500.0,0.00015064,2]
[404693929,1770474639170,-151.0,0.00015064,2]
[404693930,1770474639179,-500.0,0.00015064,2]
[404693931,1770474639188,-151.0,0.00015064,2]
[404693932,1770474639197,-500.0,0.00015064,2]
[404693933,1770474639207,-151.0,0.00015064,2]
[404693934,1770474639216,-500.0,0.00015064,2]
[404693935,1770474639226,-500.0,0.00015064,2]
[404693936,1770474639236,-151.0,0.00015064,2]
[404693937,1770474639247,-500.0,0.00015064,2]
[404693938,1770474639257,-500.0,0.00015064,2]
[404693939,1770474639266,-500.0,0.00015064,2]
[404693940,1770474639277,-500.0,0.00015064,2]
[404693941,1770474639286,-500.0,0.00015064,2]
[404693942,1770474639296,-500.0,0.00015064,2]
[404693943,1770474639305,-500.0,0.00015064,2]
[404693944,1770474639315,-500.0,0.00015064,2]
[404693945,1770474639325,-500.0,0.00015064,2]
[404693946,1770474639334,-500.0,0.00015064,2]
[404693947,1770474639344,-500.0,0.00015064,2]
[404693948,1770474639353,-200.0,0.00015064,2]
[404693949,1770474639362,-151.0,0.0001507,2]
[404693950,1770474639373,-500.0,0.00015072,2]
[404693951,1770474639382,-578.83635773,0.00015072,2]
[404693952,1770474639391,-278.44758318,0.00015072,2]
[404693953,1770474639400,-500.0,0.00015072,2]
[404693954,1770474639409,-500.0,0.00015072,2]
[404693955,1770474639419,-500.0,0.00015072,2]
[404693956,1770474639428,-500.0,0.00015072,2]
[404693957,1770474639441,-500.0,0.00015072,2]
[404693958,1770474639450,-547.89302135,0.00015072,2]
[404693959,1770474639460,-238.04320752,0.00015072,2]
[404693960,1770474639470,-666.0,0.00015072,2]
[404693961,1770474639479,-1883.179,0.00015072,2]
[404693962,1770474639489,-183.251,0.00015072,2]
[404693963,1770474639498,-922.84,0.00015072,2]
[404693964,1770474639507,-500.0,0.00015072,2]
[404693965,1770474639517,-502.58453595,0.00015072,2]
[404693966,1770474639526,-1435514.60527855,0.00015073,2]
[404693967,1770474639688,-696.05560694,0.00015073,2]
[404693968,1770474639700,-597.05296577,0.00015073,2]
[404693969,1770474639711,-92260.02608566,0.00015073,2]
[404693971,1770474640476,-150.0,0.00014798,2]
[404693972,1770474640486,-150.0,0.00014853,2]
[404693973,1770474640496,-200.0,0.00014908,2]
[404693974,1770474640506,-1766.94355509,0.00015073,2]
[404693975,1770474640518,-1773906.64290975,0.00015073,2]
[404694001,1770474646010,-150.0,0.00014798,2]
[404694002,1770474646020,-205.83867613,0.00014798,2]
[404694003,1770474646030,-150.0,0.00014798,2]
[404694004,1770474646040,-150.0,0.00014798,2]
[404694005,1770474646053,-101.98423727,0.00014798,2]
[404694006,1770474646236,-48.01576273,0.00014798,2]
[404694007,1770474646245,-302.05081908,0.00014798,2]
[404694018,1770474938875,-567.6458,9.3e-05,2]
[404694019,1770474939016,-135.9642,9.3e-05,2]
[404694020,1770474939045,-80.36074628,9.3e-05,2]
[404694021,1770474939118,-183.06925372,9.3e-05,2]
[404694030,1770475832131,-250.0,0.000115,2]
[404694031,1770475832141,-182.11,0.000115,2]
[404694032,1770475832152,-250.0,0.0001166,2]
[404694033,1770475832162,-468.51425056,0.0001176,2]
[404694034,1770475832171,-1232.94,0.00012051,2]
[404694035,1770475832181,-300.0,0.00012078,2]
[404694036,1770475832191,-1200.0,0.00012078,2]
[404694037,1770475832203,-2928.67589534,0.00012079,2]
[404694038,1770475832321,-2162.61598113,0.00012079,2]
[404694039,1770475832333,-1864.3836981,0.00012079,2]
[404694040,1770475832344,-1245.58737072,0.00012079,2]
[404694041,1770475832355,-2738.33598373,0.00012079,2]
[404694042,1770475832370,-501.00324206,0.00012079,2]
[404694043,1770475832384,-1398.56766829,0.00012079,2]
[404694044,1770475832395,-250.0,0.00012079,2]
[404694045,1770475832407,-575.75,0.00012079,2]
[404694046,1770475832418,-5763.93016063,0.00012079,2]
[404694047,1770475832428,-253.01,0.00012258,2]
[404694048,1770475832437,-300.0,0.0001237,2]
[404694049,1770475832447,-1200.0,0.0001237,2]
[404694050,1770475832456,-9219.86,0.00012372,2]
[404694051,1770475832465,-1852.42,0.00012434,2]
[404694052,1770475832474,-2297.83,0.00012476,2]
[404694053,1770475832484,-3353.79,0.00012507,2]
[404694054,1770475832494,-150.0,0.0001264,2]
[404694055,1770475832503,-500.0,0.00012641,2]
[404694056,1770475832513,-200.0,0.00012641,2]
[404694057,1770475832524,-500.0,0.00012641,2]
[404694058,1770475832533,-151.0,0.00012641,2]
[404694059,1770475832543,-500.0,0.00012641,2]
[404694060,1770475832552,-151.0,0.00012641,2]
[404694061,1770475832561,-151.0,0.00012641,2]
[404694062,1770475832571,-274.11843235,0.00012641,2]
[404694063,1770475832580,-151.0,0.00012641,2]
[404694064,1770475832590,-151.0,0.00012641,2]
[404694065,1770475832599,-151.0,0.00012641,2]
[404694066,1770475832608,-151.0,0.00012641,2]
[404694067,1770475832618,-151.0,0.00012641,2]
[404694068,1770475832627,-151.0,0.00012641,2]
[404694069,1770475832637,-151.0,0.00012641,2]
[404694070,1770475832646,-151.0,0.00012641,2]
[404694071,1770475832656,-151.0,0.00012641,2]
[404694072,1770475832666,-263.99350842,0.00012641,2]
[404694073,1770475832675,-151.0,0.00012641,2]
[404694074,1770475832685,-151.0,0.00012641,2]
[404694075,1770475832694,-151.0,0.00012641,2]
[404694076,1770475832704,-151.0,0.00012641,2]
[404694077,1770475832713,-151.0,0.00012641,2]
[404694078,1770475832723,-151.0,0.00012641,2]
[404694079,1770475832732,-151.0,0.00012641,2]
[404694080,1770475832742,-151.0,0.00012641,2]
[404694081,1770475832751,-500.0,0.00012641,2]
[404694082,1770475832762,-151.0,0.00012641,2]
[404694083,1770475832772,-151.0,0.00012641,2]
[404694084,1770475832788,-500.0,0.00012641,2]
[404694085,1770475832797,-151.0,0.00012641,2]
[404694086,1770475832807,-151.0,0.00012641,2]
[404694087,1770475832816,-500.0,0.00012641,2]
[404694088,1770475832825,-151.0,0.00012641,2]
[404694089,1770475832835,-500.0,0.00012641,2]
[404694090,1770475832844,-151.0,0.00012641,2]
[404694091,1770475832853,-151.0,0.00012641,2]
[404694092,1770475832863,-500.0,0.00012641,2]
[404694093,1770475832872,-151.0,0.00012641,2]
[404694094,1770475832881,-500.0,0.00012641,2]
[404694095,1770475832891,-99.7795389,0.00012641,2]
[404694108,1770475838149,-51.2204611,0.00012641,2]
[404694109,1770475838160,-500.0,0.00012641,2]
[404694110,1770475838170,-151.0,0.00012641,2]
[404694112,1770475838180,-500.0,0.00012641,2]
[404694114,1770475838190,-151.0,0.00012641,2]
[404694116,1770475838200,-500.0,0.00012641,2]
[404694118,1770475838214,-467.36850246,0.00012641,2]
[404694119,1770475838226,-32.63149754,0.00012641,2]
[404694120,1770475838236,-200.0,0.00012641,2]
[404694121,1770475838247,-384.30192235,0.00012641,2]
[404694122,1770475838258,-115.69807765,0.00012641,2]
[404694123,1770475838268,-500.0,0.00012641,2]
[404694124,1770475838278,-500.0,0.00012641,2]
[404694125,1770475838288,-500.0,0.00012641,2]
[404694126,1770475838300,-500.0,0.00012641,2]
[404694127,1770475838309,-500.0,0.00012641,2]
[404694128,1770475838319,-500.0,0.00012641,2]
[404694129,1770475838328,-500.0,0.00012641,2]
[404694130,1770475838337,-500.0,0.00012641,2]
[404694131,1770475838347,-500.0,0.00012641,2]
[404694132,1770475838357,-500.0,0.00012641,2]
[404694133,1770475838366,-500.0,0.00012641,2]
[404694134,1770475838376,-5000.0,0.00012649,2]
[404694135,1770475838386,-250.0,0.00012649,2]
[404694136,1770475838396,-271.12,0.00012877,2]
[404694137,1770475838406,-500.0,0.00012915,2]
[404694138,1770475838416,-253.01,0.00012939,2]
[404694139,1770475838426,-511.92394536,0.00013189,2]
[404694140,1770475838437,-200.0,0.00013189,2]
[404694141,1770475838446,-500.0,0.00013189,2]
[404694142,1770475838456,-200.0,0.00013189,2]
[404694143,1770475838465,-407.0,0.00013257,2]
[404694144,1770475838475,-1680.0,0.00013285,2]
[404694145,1770475838485,-327.11,0.00013286,2]
[404694146,1770475838495,-1759.33,0.00013299,2]
[404694147,1770475838505,-1759.33,0.00013323,2]
[404694148,1770475838514,-1759.33,0.00013348,2]
[404694149,1770475838524,-150.0,0.00013353,2]
[404694150,1770475838534,-22670.21461809,0.00013361,2]
[404694151,1770475838550,-18048.31740234,0.00013361,2]
[404694152,1770475838562,-1542.02172142,0.00013361,2]
[404694153,1770475838577,-6967.07197199,0.00013361,2]
[404694154,1770475838587,-1759.33,0.00013372,2]
[404694155,1770475838596,-1759.33,0.00013397,2]
[404694156,1770475838605,-1759.33,0.00013421,2]
[404694157,1770475838618,-1759.33,0.00013446,2]
[404694158,1770475838629,-41303.36659463,0.00013452,2]
[404694159,1770475838638,-500.0,0.0001346,2]
[404694160,1770475838648,-500.0,0.0001346,2]
[404694161,1770475838658,-500.0,0.0001346,2]
[404694162,1770475838668,-500.0,0.0001346,2]
[404694163,1770475838678,-198.27697094,0.0001346,2]
[404694164,1770475838687,-546.14532091,0.0001346,2]
[404694165,1770475838697,-500.0,0.0001346,2]
[404694166,1770475838706,-500.0,0.0001346,2]
[404694167,1770475838716,-500.0,0.0001346,2]
[404694168,1770475838725,-500.0,0.0001346,2]
[404694169,1770475838735,-500.0,0.0001346,2]
[404694170,1770475838744,-546.14532091,0.0001346,2]
[404694171,1770475838754,-500.0,0.0001346,2]
[404694172,1770475838763,-500.0,0.0001346,2]
[404694173,1770475838772,-204.15306279,0.0001346,2]
[404694174,1770475838782,-500.0,0.0001346,2]
[404694175,1770475838793,-500.0,0.0001346,2]
[404694176,1770475838802,-546.14532091,0.0001346,2]
[404694177,1770475838811,-500.0,0.0001346,2]
[404694178,1770475838821,-487.461069,0.0001346,2]
[404694179,1770475838830,-500.0,0.0001346,2]
[404694180,1770475838839,-500.0,0.0001346,2]
[404694181,1770475838848,-546.14532091,0.0001346,2]
[404694182,1770475838858,-546.14532091,0.0001346,2]
[404694183,1770475838867,-631.2617397,0.0001346,2]
[404694184,1770475838877,-500.0,0.0001346,2]
[404694185,1770475838886,-546.14532091,0.0001346,2]
[404694186,1770475838894,-363.36189103,0.0001346,2]
[404694187,1770475838903,-546.14532091,0.0001346,2]
[404694188,1770475838912,-546.14532091,0.0001346,2]
[404694189,1770475838921,-546.14532091,0.0001346,2]
[404694190,1770475838929,-546.14532091,0.0001346,2]
[404694191,1770475838939,-546.14532091,0.0001346,2]
[404694192,1770475838948,-546.14532091,0.0001346,2]
[404694193,1770475838957,-546.14532091,0.0001346,2]
[404694194,1770475838967,-546.14532091,0.0001346,2]
[404694195,1770475838976,-546.14532091,0.0001346,2]
[404694196,1770475838986,-546.14532091,0.0001346,2]
[404694197,1770475838995,-546.14532091,0.0001346,2]
[404694198,1770475839005,-546.14532091,0.0001346,2]
[404694199,1770475839015,-546.14532091,0.0001346,2]
[404694200,1770475839025,-546.14532091,0.0001346,2]
[404694201,1770475839035,-546.14532091,0.0001346,2]
[404694202,1770475839046,-546.14532091,0.0001346,2]
[404694203,1770475839056,-546.14532091,0.0001346,2]
[404694204,1770475839067,-546.14532091,0.0001346,2]
[404694205,1770475839076,-546.14532091,0.0001346,2]
[404694206,1770475839086,-546.14532091,0.0001346,2]
[404694207,1770475839097,-546.14532091,0.0001346,2]
[404694208,1770475839106,-546.14532091,0.0001346,2]
[404694209,1770475839116,-546.14532091,0.0001346,2]
[404694210,1770475839126,-546.14532091,0.0001346,2]
[404694211,1770475839137,-546.14532091,0.0001346,2]
[404694212,1770475839147,-546.14532091,0.0001346,2]
[404694213,1770475839156,-546.14532091,0.0001346,2]
[404694214,1770475839166,-546.14532091,0.0001346,2]
[404694215,1770475839176,-546.14532091,0.0001346,2]
[404694216,1770475839186,-546.14532091,0.0001346,2]
[404694217,1770475839195,-546.14532091,0.0001346,2]
[404694218,1770475839207,-546.14532091,0.0001346,2]
[404694219,1770475839217,-546.14532091,0.0001346,2]
[404694220,1770475839227,-546.14532091,0.0001346,2]
[404694221,1770475839237,-546.14532091,0.0001346,2]
[404694222,1770475839249,-546.14532091,0.0001346,2]
[404694223,1770475839258,-1226.92208557,0.0001346,2]
[404694224,1770475839268,-1226.92208557,0.0001346,2]
[404694225,1770475839278,-1226.92208557,0.0001346,2]
[404694226,1770475839289,-1226.92208557,0.0001346,2]
[404694227,1770475839304,-1226.92208557,0.0001346,2]
[404694228,1770475839314,-1226.92208557,0.0001346,2]